fUST/lending_fUST_20250619
["ID","MTS","AMOUNT","RATE_DAILY","PERIOD"]
[366475428,1750277449341,-180.0,0.00023287,6]
[366475429,1750277449351,-460.0,0.00023287,6]
[366475430,1750277449360,-460.4,0.00023287,6]
[366475431,1750277449369,-460.0,0.00023287,6]
[366475432,1750277449378,-460.0,0.00023287,6]
[366475433,1750277449388,-590.83,0.00023287,6]
[366475434,1750277449397,-460.0,0.00023287,6]
[366475435,1750277449407,-460.0,0.00023287,6]
[366475436,1750277449416,-577.22,0.00023287,6]
[366475437,1750277449425,-400.0,0.00023287,6]
[366475438,1750277449434,-460.0,0.00023287,6]
[366475439,1750277449443,-460.0,0.00023287,6]
[366475440,1750277449453,-460.0,0.00023287,6]
[366475441,1750277449463,-460.0,0.00023287,6]
[366475442,1750277449473,-440.0,0.00023287,6]
[366475443,1750277449482,-460.0,0.00023287,6]
[366475444,1750277449491,-3034.5,0.00023287,6]
[366475445,1750277449501,-460.0,0.00023287,6]
[366475446,1750277449510,-460.0,0.00023287,6]
[366475447,1750277449519,-460.0,0.00023287,6]
[366475448,1750277449528,-460.0,0.00023287,6]
[366475449,1750277449537,-768.84,0.00023287,6]
[366475450,1750277449547,-460.0,0.00023287,6]
[366475451,1750277449556,-460.0,0.00023287,6]
[366475452,1750277449565,-460.0,0.00023287,6]
[366475453,1750277449575,-400.0,0.00023287,6]
[366475454,1750277449584,-460.0,0.00023287,6]
[366475455,1750277449593,-1836.8,0.00023287,6]
[366475456,1750277449603,-543.96,0.00023287,6]
[366475457,1750277449612,-320.51449009,0.00023287,6]
[366475458,1750277449621,-460.0,0.00023287,6]
[366475459,1750277449631,-3256.24,0.00023287,6]
[366475460,1750277449640,-1069.05,0.00023287,6]
[366475461,1750277449650,-563.58,0.00023287,6]
[366475462,1750277449659,-2548.56,0.00023287,6]
[366475463,1750277449668,-498.88946386,0.00023287,6]
[366475464,1750277449677,-283.2427941,0.00023287,6]
[366475465,1750277449686,-1472.75,0.00023287,6]
[366475466,1750277449695,-1218.86,0.00023287,6]
[366475467,1750277449705,-421.16266117,0.00023287,6]
[366475468,1750277449714,-460.0,0.00023287,6]
[366475469,1750277449723,-460.0,0.00023287,6]
[366475470,1750277449732,-460.0,0.00023287,6]
[366475471,1750277449740,-460.0,0.00023287,6]
[366475472,1750277449749,-515.5,0.00023287,6]
[366475473,1750277449758,-196.82104687,0.00023287,6]
[366475474,1750277449768,-460.0,0.00023287,6]
[366475475,1750277449781,-939.38,0.00023287,6]
[366475476,1750277449790,-460.0,0.00023287,6]
[366475477,1750277449799,-460.0,0.00023287,6]
[366475478,1750277449808,-460.0,0.00023287,6]
[366475479,1750277449818,-483.63034386,0.00023287,6]
[366475480,1750277449828,-370.31986821,0.00023287,6]
[366475481,1750277449837,-1762.07,0.00023287,6]
[366475482,1750277449937,-460.0,0.00023287,6]
[366475483,1750277449946,-536.63,0.00023287,6]
[366475484,1750277449956,-1261.69,0.00023287,6]
[366475485,1750277449966,-460.0,0.00023287,6]
[366475486,1750277449975,-460.0,0.00023287,6]
[366475487,1750277449985,-1399.88,0.00023287,6]
[366475488,1750277449994,-877.75,0.00023287,6]
[366475489,1750277450003,-650.18,0.00023287,6]
[366475490,1750277450012,-460.0,0.00023287,6]
[366475491,1750277450021,-460.0,0.00023287,6]
[366475492,1750277450030,-1574.72,0.00023287,6]
[366475493,1750277450039,-502.38,0.00023287,6]
[366475494,1750277450049,-460.0,0.00023287,6]
[366475495,1750277450058,-460.0,0.00023287,6]
[366475496,1750277450067,-460.0,0.00023287,6]
[366475497,1750277450076,-4445.37,0.00023287,6]
[366475498,1750277450085,-513.03,0.00023287,6]
[366475499,1750277450094,-1301.27,0.00023287,6]
[366475500,1750277450103,-709.25,0.00023287,6]
[366475501,1750277450112,-2096.89,0.00023287,6]
[366475502,1750277450122,-3156.43,0.00023287,6]
[366475503,1750277450132,-460.0,0.00023287,6]
[366475504,1750277450141,-497.0,0.00023287,6]
[366475505,1750277450151,-497.0,0.00023315,6]
[366475506,1750277450160,-151.0,0.00023325,7]
[366475507,1750277450169,-151.0,0.00023325,7]
[366475508,1750277450178,-151.0,0.00023325,7]
[366475509,1750277450188,-151.0,0.00023325,7]
[366475510,1750277450197,-151.0,0.00023325,7]
[366475511,1750277450207,-162.365828,0.00023325,7]
[366475512,1750277450215,-162.365828,0.00023325,7]
[366475513,1750277450224,-151.0,0.00023325,2]
[366475514,1750277450233,-497.0,0.00023342,6]
[366475515,1750277450242,-1603.04,0.00023356,2]
[366475516,1750277450252,-497.0,0.00023369,6]
[366475517,1750277450261,-500.0,0.00023387,2]
[366475518,1750277450270,-497.0,0.00023397,6]
[366475519,1750277450279,-587.0,0.00023411,2]
[366475520,1750277450288,-1862.483467,0.00023412,3]
[366475521,1750277450298,-497.0,0.00023424,6]
[366475522,1750277450307,-554.05,0.00023441,5]
[366475523,1750277450316,-497.0,0.00023452,6]
[366475524,1750277450325,-406.0,0.00023471,2]
[366475525,1750277450335,-497.0,0.00023479,6]
[366475526,1750277450345,-497.0,0.00023506,6]
[366475527,1750277450354,-429.17624787,0.00023507,2]
[366475528,1750277450363,-497.0,0.00023534,6]
[366475529,1750277450373,-304.38049021,0.00023561,6]
[366475530,1750277450382,-404.58243388,0.00023561,6]
[366475531,1750277450392,-460.0,0.00023561,6]
[366475532,1750277450401,-460.4,0.00023561,6]
[366475533,1750277450410,-460.0,0.00023561,6]
[366475534,1750277450419,-320.0,0.00023561,6]
[366475535,1750277450428,-590.83,0.00023561,6]
[366475536,1750277450438,-420.0,0.00023561,6]
[366475537,1750277450447,-460.0,0.00023561,6]
[366475538,1750277450457,-577.22,0.00023561,6]
[366475539,1750277450466,-400.0,0.00023561,6]
[366475540,1750277450475,-440.0,0.00023561,6]
[366475541,1750277450485,-460.0,0.00023561,6]
[366475542,1750277450494,-460.0,0.00023561,6]
[366475543,1750277450504,-460.0,0.00023561,6]
[366475544,1750277450513,-3034.5,0.00023561,6]
[366475545,1750277450523,-460.0,0.00023561,6]
[366475546,1750277450532,-460.0,0.00023561,6]
[366475547,1750277450541,-460.0,0.00023561,6]
[366475548,1750277450551,-768.84,0.00023561,6]
[366475549,1750277450561,-460.0,0.00023561,6]
[366475550,1750277450570,-460.0,0.00023561,6]
[366475551,1750277450579,-417.92775521,0.00023561,6]
[366475552,1750277450589,-460.0,0.00023561,6]
[366475553,1750277450599,-1836.8,0.00023561,6]
[366475554,1750277450608,-543.96,0.00023561,6]
[366475555,1750277450618,-460.0,0.00023561,6]
[366475556,1750277450629,-3256.24,0.00023561,6]
[366475557,1750277450639,-1069.05,0.00023561,6]
[366475558,1750277450648,-563.58,0.00023561,6]
[366475559,1750277450657,-2548.56,0.00023561,6]
[366475560,1750277450667,-1472.75,0.00023561,6]
[366475561,1750277450684,-1218.86,0.00023561,6]
[366475562,1750277450695,-460.0,0.00023561,6]
[366475563,1750277450706,-460.0,0.00023561,6]
[366475564,1750277450715,-460.0,0.00023561,6]
[366475565,1750277450724,-460.0,0.00023561,6]
[366475566,1750277450734,-515.5,0.00023561,6]
[366475567,1750277450743,-460.0,0.00023561,6]
[366475568,1750277450752,-939.38,0.00023561,6]
[366475569,1750277450761,-460.0,0.00023561,6]
[366475570,1750277450774,-460.0,0.00023561,6]
[366475571,1750277450783,-460.0,0.00023561,6]
[366475572,1750277450793,-1762.07,0.00023561,6]
[366475573,1750277450803,-460.0,0.00023561,6]
[366475574,1750277450813,-536.63,0.00023561,6]
[366475575,1750277450823,-1261.69,0.00023561,6]
[366475576,1750277450832,-460.0,0.00023561,6]
[366475577,1750277450841,-1399.88,0.00023561,6]
[366475578,1750277450851,-877.75,0.00023561,6]
[366475579,1750277450861,-650.18,0.00023561,6]
[366475580,1750277450870,-460.0,0.00023561,6]
[366475581,1750277450879,-460.0,0.00023561,6]
[366475582,1750277450888,-1574.72,0.00023561,6]
[366475583,1750277450898,-502.38,0.00023561,6]
[366475584,1750277450907,-460.0,0.00023561,6]
[366475585,1750277450916,-153.46632108,0.00023561,6]
[366475586,1750277450925,-460.0,0.00023561,6]
[366475587,1750277450934,-4445.37,0.00023561,6]
[366475588,1750277450943,-513.03,0.00023561,6]
[366475589,1750277450952,-1301.27,0.00023561,6]
[366475590,1750277450962,-709.25,0.00023561,6]
[366475591,1750277450971,-2096.89,0.00023561,6]
[366475592,1750277450980,-3156.43,0.00023561,6]
[366475593,1750277450989,-460.0,0.00023561,6]
[366475594,1750277450999,-497.0,0.00023561,6]
[366475595,1750277451007,-1500.0,0.00023568,2]
[366475596,1750277451016,-497.0,0.00023589,6]
[366475597,1750277451025,-168.17519988,0.0002359,2]
[366475598,1750277451035,-3000.0,0.000236,2]
[366475599,1750277451044,-3000.0,0.0002361,2]
[366475600,1750277451053,-303.72413126,0.00023612,2]
[366475601,1750277451062,-497.0,0.00023616,6]
[366475602,1750277451071,-3000.0,0.0002362,2]
[366475603,1750277451079,-151.0,0.0002362,7]
[366475604,1750277451088,-151.0,0.0002362,7]
[366475605,1750277451098,-151.0,0.0002362,7]
[366475606,1750277451107,-485.96208076,0.00023621,2]
[366475607,1750277451323,-1000.0,0.00023621,2]
[366475608,1750277451333,-1000.0,0.00023621,2]
[366475609,1750277451342,-1001.65890684,0.00023621,2]
[366475610,1750277451351,-1000.0,0.00023621,2]
[366475611,1750277451359,-1000.0,0.00023621,2]
[366475612,1750277451369,-500.0,0.00023621,2]
[366475613,1750277451378,-500.0,0.00023621,2]
[366475614,1750277451387,-1000.0,0.00023621,2]
[366475615,1750277451395,-1200.0,0.00023621,2]
[366475616,1750277451404,-1000.0,0.00023621,2]
[366475617,1750277451413,-3000.0,0.0002363,2]
[366475618,1750277451423,-3000.0,0.0002364,2]
[366475619,1750277451431,-497.0,0.00023643,6]
[366475620,1750277451440,-188.27130948,0.00023649,2]
[366475621,1750277451450,-3000.0,0.0002365,2]
[366475622,1750277451459,-3000.0,0.0002366,2]
[366475623,1750277451468,-800.0,0.00023664,2]
[366475624,1750277451477,-3000.0,0.0002367,2]
[366475625,1750277451486,-497.0,0.00023671,6]
[366475626,1750277451496,-3000.0,0.0002368,2]
[366475627,1750277451505,-151.0,0.0002368,7]
[366475628,1750277451514,-272.41321,0.0002368,7]
[366475629,1750277451524,-3000.0,0.0002369,2]
[366475630,1750277451533,-512.60461338,0.00023698,6]
[366475631,1750277451543,-3000.0,0.000237,2]
[366475632,1750277451554,-8000.0,0.000237,7]
[366475633,1750277451563,-500.0,0.00023701,2]
[366475634,1750277451572,-3000.0,0.0002371,2]
[366475635,1750277451581,-3000.0,0.0002372,2]
[366475636,1750277451590,-1713.2244283,0.0002372,2]
[366475637,1750277451600,-317.9816472,0.00023726,2]
[366475638,1750277451610,-1148.4306086,0.00023726,2]
[366475639,1750277451619,-354.3008366,0.00023726,2]
[366475640,1750277451628,-3000.0,0.0002373,2]
[366475641,1750277451637,-3000.0,0.0002374,2]
[366475642,1750277451647,-3000.0,0.0002375,2]
[366475643,1750277451656,-3000.0,0.0002376,2]
[366475644,1750277451666,-3000.0,0.0002377,2]
[366475645,1750277451675,-176.14,0.00023771,2]
[366475646,1750277451684,-964.0,0.00023771,2]
[366475647,1750277451693,-2160.0,0.00023771,2]
[366475648,1750277451703,-653.0,0.00023771,2]
[366475649,1750277451713,-3000.0,0.0002378,2]
[366475650,1750277451722,-3000.0,0.0002379,2]
[366475651,1750277451731,-200.0,0.00023799,2]
[366475652,1750277451740,-200.0,0.00023799,2]
[366475653,1750277451749,-14911.0363474,0.000238,4]
[366475654,1750277451759,-50000.0,0.000238,7]
[366475655,1750277451771,-48824.0,0.000238,2]
[366475656,1750277451790,-1358.23,0.000238,7]
[366475657,1750277451802,-1706.6,0.000238,2]
[366475658,1750277451811,-3000.0,0.000238,2]
[366475659,1750277451820,-3000.0,0.000238,2]
[366475660,1750277451829,-151.0,0.000238,7]
[366475661,1750277451838,-151.0,0.000238,7]
[366475662,1750277451847,-151.0,0.000238,7]
[366475663,1750277451856,-151.0,0.000238,7]
[366475664,1750277451866,-151.0,0.000238,7]
[366475665,1750277451876,-151.0,0.000238,7]
[366475666,1750277451886,-151.0,0.000238,7]
[366475667,1750277451895,-151.0,0.000238,7]
[366475668,1750277451905,-1000.0,0.000238,2]
[366475669,1750277451915,-151.0,0.000238,7]
[366475670,1750277451925,-3000.0,0.0002381,2]
[366475671,1750277451935,-3000.0,0.0002381,2]
[366475672,1750277451944,-3000.0,0.0002382,2]
[366475673,1750277451956,-3000.0,0.0002382,2]
[366475674,1750277451968,-151.0,0.0002382,7]
[366475675,1750277451979,-151.0,0.0002382,7]
[366475676,1750277451989,-3000.0,0.0002383,2]
[366475677,1750277451999,-3000.0,0.0002383,2]
[366475678,1750277452098,-200.0,0.00023834,2]
[366475679,1750277452108,-151.0,0.00023835,7]
[366475680,1750277452117,-151.0,0.00023835,7]
[366475681,1750277452127,-151.0,0.00023835,7]
[366475682,1750277452136,-151.0,0.00023835,7]
[366475683,1750277452145,-151.0,0.00023835,7]
[366475684,1750277452154,-151.0,0.00023835,7]
[366475685,1750277452164,-162.365828,0.00023835,7]
[366475686,1750277452174,-162.365828,0.00023835,7]
[366475687,1750277452183,-151.0,0.00023835,2]
[366475688,1750277452191,-460.0,0.00023835,6]
[366475689,1750277452200,-460.4,0.00023835,6]
[366475690,1750277452213,-460.0,0.00023835,6]
[366475691,1750277452223,-590.83,0.00023835,6]
[366475692,1750277452232,-577.22,0.00023835,6]
[366475693,1750277452242,-460.0,0.00023835,6]
[366475694,1750277452251,-460.0,0.00023835,6]
[366475695,1750277452261,-460.0,0.00023835,6]
[366475696,1750277452271,-3034.5,0.00023835,6]
[366475697,1750277452280,-460.0,0.00023835,6]
[366475698,1750277452289,-460.0,0.00023835,6]
[366475699,1750277452298,-460.0,0.00023835,6]
[366475700,1750277452308,-768.84,0.00023835,6]
[366475701,1750277452317,-460.0,0.00023835,6]
[366475702,1750277452327,-460.0,0.00023835,6]
[366475703,1750277452336,-460.0,0.00023835,6]
[366475704,1750277452345,-1836.8,0.00023835,6]
[366475705,1750277452355,-543.96,0.00023835,6]
[366475706,1750277452364,-3256.24,0.00023835,6]
[366475707,1750277452373,-1069.05,0.00023835,6]
[366475708,1750277452383,-563.58,0.00023835,6]
[366475709,1750277452392,-2548.56,0.00023835,6]
[366475710,1750277452401,-1472.75,0.00023835,6]
[366475711,1750277452410,-1218.86,0.00023835,6]
[366475712,1750277452419,-460.0,0.00023835,6]
[366475713,1750277452429,-460.0,0.00023835,6]
[366475714,1750277452438,-460.0,0.00023835,6]
[366475715,1750277452447,-460.0,0.00023835,6]
[366475716,1750277452460,-515.5,0.00023835,6]
[366475717,1750277452469,-460.0,0.00023835,6]
[366475718,1750277452479,-939.38,0.00023835,6]
[366475719,1750277452488,-460.0,0.00023835,6]
[366475720,1750277452497,-460.0,0.00023835,6]
[366475721,1750277452506,-460.0,0.00023835,6]
[366475722,1750277452515,-1762.07,0.00023835,6]
[366475723,1750277452524,-460.0,0.00023835,6]
[366475724,1750277452533,-536.63,0.00023835,6]
[366475725,1750277452543,-1261.69,0.00023835,6]
[366475726,1750277452552,-1399.88,0.00023835,6]
[366475727,1750277452562,-877.75,0.00023835,6]
[366475728,1750277452572,-650.18,0.00023835,6]
[366475729,1750277452582,-460.0,0.00023835,6]
[366475730,1750277452591,-460.0,0.00023835,6]
[366475731,1750277452600,-1574.72,0.00023835,6]
[366475732,1750277452609,-502.38,0.00023835,6]
[366475733,1750277452619,-460.0,0.00023835,6]
[366475734,1750277452629,-460.0,0.00023835,6]
[366475735,1750277452639,-4445.37,0.00023835,6]
[366475736,1750277452649,-513.03,0.00023835,6]
[366475737,1750277452658,-1301.27,0.00023835,6]
[366475738,1750277452668,-709.25,0.00023835,6]
[366475739,1750277452677,-1311.91410003,0.00023835,6]
[366475740,1750277452767,24900.0,0.00019068,2]
[366475741,1750277491385,355.66,0.00018399,2]
[366475742,1750277491837,150.5,0.0002328,120]
[366475743,1750277492268,150.5,0.0002328,120]
[366475744,1750277492316,150.5,0.0002327,120]
[366475745,1750277492731,150.5,0.0002327,120]
[366475746,1750277492771,150.5,0.0002326,120]
[366475747,1750277493239,266.26,0.00023929,120]
[366475748,1750277494893,152.54,0.0002326,120]
[366475749,1750277570730,433.47,0.00018273,2]
[366475750,1750277591563,3501.2855083,0.00019068,2]
[366475751,1750277603792,156.0,0.00025251,120]
[366475752,1750277623608,530.1137733,0.00019068,2]
[366475753,1750277655107,427.96,0.00018269,2]
[366475758,1750277714744,294.355546,0.00013699,2]
[366475759,1750277720191,150.01,0.0001,2]
[366475761,1750277736476,422.51,0.00018353,2]
[366475762,1750277817249,417.13,0.00018265,2]
[366475763,1750277851992,150.5,0.0002329,120]
[366475764,1750277852433,150.5,0.0002328,120]
[366475765,1750277852916,150.5,0.0002327,120]
[366475766,1750277899724,411.82,0.00018273,2]
[366475767,1750277981173,406.58,0.00018265,2]
[366475770,1750278062289,401.41,0.00018616,2]
[366475771,1750278095084,199.772247,0.00020231,120]
[366475772,1750278143175,396.3,0.00018257,2]
[366475773,1750278212416,150.5,0.0002328,120]
[366475774,1750278212857,150.5,0.0002327,120]
[366475775,1750278212943,266.26,0.0002328,120]
[366475776,1750278213331,152.54,0.0002326,120]
[366475777,1750278223290,391.25,0.00018336,2]
[366475778,1750278305394,388.31,0.00018264,2]
[366475780,1750278330850,200.0,0.00024292,120]
[366475783,1750278386340,383.37,0.00018263,2]
[366475785,1750278441494,302.0,0.00024657,120]
[366475786,1750278467646,378.49,0.00018336,2]
[366475787,1750278470592,688.26713331,0.000246,120]
[366475788,1750278477330,1000.0,0.00025249,120]
[366475790,1750278483172,2000.0,0.0001942,120]
[366475796,1750278500061,188.0,0.0002,120]
[366475797,1750278514782,1058.68865559,0.0002,120]
[366475798,1750278517641,382.09223832,0.00024108,120]
[366475799,1750278519083,1794.94329633,0.00024,120]
[366475801,1750278522558,2143.45042181,0.000245,120]
[366475802,1750278523757,387.60466521,0.00024,120]
[366475803,1750278524766,218.31861298,0.0001536,120]
[366475804,1750278526095,1010.41978157,0.0002,120]
[366475807,1750278527746,500.86873736,0.0002465,120]
[366475808,1750278527874,235.38646318,0.00024,120]
[366475809,1750278527906,158.92,0.00019216,120]
[366475810,1750278546796,379.29,0.00018309,2]
[366475811,1750278627913,374.46,0.00018341,2]
[366475812,1750278629618,216.06644372,0.00019104,2]
[366475819,1750278632143,-2037.42330398,0.00019205,5]
[366475820,1750278632153,-748.93,0.00019214,2]
[366475821,1750278632163,-229.89164447,0.00019586,2]
[366475822,1750278632173,-1000.0,0.0001984,2]
[366475823,1750278632183,-1000.0,0.0001984,2]
[366475824,1750278632192,-834.4409559,0.000199,2]
[366475825,1750278632203,-169.16908364,0.00019969,2]
[366475838,1750278638019,-216.06644372,0.00019953,2]
[366475839,1750278638029,-30.03551709,0.00019969,2]
[366475840,1750278638204,-260.78028782,0.00019972,2]
[366475841,1750278638215,-500.0,0.00019972,2]
[366475842,1750278638224,-177.37397383,0.00019972,2]
[366475843,1750278638234,-500.0,0.00019972,2]
[366475844,1750278638243,-500.0,0.00019972,2]
[366475845,1750278638252,-500.0,0.00019972,2]
[366475846,1750278638262,-500.0,0.00019972,2]
[366475847,1750278638272,-500.0,0.00019972,2]
[366475848,1750278638281,-500.0,0.00019972,2]
[366475849,1750278638291,-500.0,0.00019972,2]
[366475850,1750278638301,-247.5882973,0.00019972,2]
[366475851,1750278638310,-500.0,0.00019972,2]
[366475852,1750278638320,-375.76217443,0.00019972,2]
[366475853,1750278638329,-500.0,0.00019972,2]
[366475854,1750278638339,-500.0,0.00019972,2]
[366475855,1750278638349,-500.0,0.00019972,2]
[366475856,1750278638359,-557.63324278,0.00019972,2]
[366475858,1750278638369,-500.0,0.00019972,2]
[366475860,1750278638378,-276.96967793,0.00019972,2]
[366475861,1750278638387,-421.91767986,0.00019972,2]
[366475862,1750278638397,-500.0,0.00019972,2]
[366475863,1750278638406,-500.0,0.00019972,2]
[366475864,1750278638415,-300.0,0.00019972,2]
[366475865,1750278638425,-571.0,0.00019972,2]
[366475866,1750278638434,-208.8453268,0.00019973,2]
[366475867,1750278638443,-446.20479493,0.00019973,2]
[366475868,1750278638453,-500.0,0.00019973,2]
[366475869,1750278638463,-500.0,0.00019973,2]
[366475870,1750278638473,-500.0,0.00019973,2]
[366475871,1750278638483,-500.0,0.00019973,2]
[366475872,1750278638493,-500.0,0.00019973,2]
[366475873,1750278638503,-50000.0,0.00019973,2]
[366475874,1750278638513,-500.0,0.00019973,2]
[366475875,1750278638522,-500.0,0.00019973,2]
[366475876,1750278638531,-500.0,0.00019973,2]
[366475877,1750278638541,-21625.78154147,0.0002,2]
[366475927,1750278646130,-474.4680175,0.00019972,2]
[366475928,1750278646184,-25.5319825,0.00019972,2]
[366475929,1750278646194,-403.82350019,0.0002,2]
[366475931,1750278646240,-387.35102918,0.0002,2]
[366476026,1750278713142,438.32,0.00018421,2]
[366476027,1750278795237,558.0,0.00018697,2]
[366476028,1750278803778,279.637768,0.00013699,2]
[366476030,1750278872200,210.6849129,0.00019073,2]
[366476031,1750278877426,550.9,0.00018639,2]
[366476032,1750278885101,931.4815487,0.000189,2]
[366476033,1750278939010,670.98769913,0.000189,2]
[366476034,1750278956801,600.55,0.00018631,2]
[366476038,1750279040006,592.91,0.00018659,2]
[366476046,1750279121812,585.36,0.00018657,2]
[366476047,1750279186277,447.32513276,0.000189,2]
[366476049,1750279203664,577.91,0.00018714,2]
[366476050,1750279240214,298.21675517,0.000189,2]
[366476052,1750279286216,570.56,0.00018471,2]
[366476053,1750279301241,624.600411,0.00018658,2]
[366476054,1750279358198,-365.249378,0.00019178,2]
[366476055,1750279358227,-1141.12,0.00019351,2]
[366476056,1750279358255,-195.23573109,0.00019656,2]
[366476057,1750279358288,-157.99085332,0.00019656,2]
[366476058,1750279358318,-500.0,0.00019656,2]
[366476059,1750279358352,-173.07036031,0.00019656,2]
[366476060,1750279358390,-500.0,0.00019656,2]
[366476061,1750279358422,-164.52088407,0.00019656,2]
[366476062,1750279358462,-300.0,0.00019656,2]
[366476063,1750279358496,-300.0,0.00019656,2]
[366476064,1750279358525,-12088.38633668,0.00019657,2]
[366476065,1750279358552,-300.0,0.00019657,2]
[366476066,1750279358580,-1200.0,0.00019657,2]
[366476067,1750279358607,-182.54620148,0.00019659,2]
[366476068,1750279358635,-326.129,0.00019659,2]
[366476069,1750279358663,-4965.75125505,0.0001966,2]
[366476070,1750279371453,548.77,0.0001845,2]
[366476071,1750279385989,429.82901922,0.00017632,2]
[366476072,1750279386727,429.82901922,0.0001784,2]
[366476073,1750279387031,429.82901922,0.00018162,2]
[366476074,1750279387432,429.82901922,0.00018453,2]
[366476075,1750279387757,429.82901922,0.00018893,2]
[366476076,1750279388063,429.82901922,0.00019084,2]
[366476077,1750279452746,541.79,0.00018365,2]
[366476078,1750279466585,2000.0,0.00018815,120]
[366476079,1750279487266,198.81117011,0.000189,2]
[366476080,1750279533953,534.89,0.00018316,2]
[366476081,1750279535459,17663.9569222,0.00018935,2]
[366476082,1750279535486,7236.0430778,0.00018935,2]
[366476083,1750279541491,150.0,0.000189,2]
[366476084,1750279615109,528.09,0.00018318,2]
[366476086,1750279695322,535.21,0.00018347,2]
[366476087,1750279776937,528.4,0.00018381,2]
[366476088,1750279781011,216.328235,0.00018705,2]
[366476089,1750279781202,216.328235,0.00018705,120]
[366476090,1750279788377,150.0,0.000189,2]
[366476091,1750279806393,221.50311902,0.00018583,2]
[366476118,1750279832381,-5000.0,0.00019157,2]
[366476120,1750279832390,-329.066602,0.00019178,2]
[366476122,1750279832399,-160.0,0.0001919,2]
[366476124,1750279832409,-1056.79,0.00019256,2]
[366476126,1750279832419,-204.32331408,0.00019651,2]
[366476128,1750279832429,-1151.0,0.00019658,2]
[366476129,1750279832438,-300.0,0.00019659,2]
[366476131,1750279832448,-300.0,0.00019659,2]
[366476133,1750279832457,-12285.0961119,0.0001966,2]
[366476136,1750279832469,-6398.67979468,0.0001966,2]
[366476139,1750279832493,-37939.80992031,0.0001966,2]
[366476141,1750279832503,-429.82901923,0.00019728,2]
[366476143,1750279832514,-800.0,0.00019732,2]
[366476145,1750279832526,-1951.70683805,0.000199,2]
[366476147,1750279832535,-5392.46327152,0.00019921,2]
[366476149,1750279832545,-500.0,0.00019973,2]
[366476151,1750279832555,-501.37914355,0.00019973,2]
[366476153,1750279832565,-550.65953211,0.00019973,2]
[366476155,1750279832574,-336.58583321,0.00019973,2]
[366476157,1750279832584,-500.0,0.00019973,2]
[366476159,1750279832594,-500.0,0.00019973,2]
[366476162,1750279832604,-500.0,0.00019973,2]
[366476164,1750279832613,-500.0,0.00019973,2]
[366476166,1750279832623,-500.0,0.00019973,2]
[366476168,1750279832632,-503.10535846,0.00019973,2]
[366476170,1750279832641,-502.90397211,0.00019973,2]
[366476172,1750279832651,-500.0,0.00019973,2]
[366476174,1750279832660,-500.0,0.00019973,2]
[366476176,1750279832669,-500.0,0.00019973,2]
[366476178,1750279832679,-508.50880777,0.00019973,2]
[366476180,1750279832688,-500.0,0.00019973,2]
[366476182,1750279832697,-184.66185535,0.00019973,2]
[366476184,1750279832706,-500.0,0.00019973,2]
[366476186,1750279832715,-694.03,0.0001998,3]